[Event "FIDE World Rapid Chess Championship 2021"]
[White "Hovhannisyan, Robert"]
[Black "Rapport, Richard"]
[WhiteFideId "13302507"]
[BlackFideId "738590"]
[WhiteElo "2613"]
[BlackElo "2750"]
[Result "0-1"]
[Round "12"]
[TimeControl "900+10"]
[Date "2021.12.28"]
[WhiteClock "0:00:18"]
[BlackClock "0:05:32"]

1. e4 {[%clk 0:15:18]}  e6 {[%clk 0:15:06]} 2. d4 {[%clk 0:15:18]}  d5 {[%clk 0:15:18]} 3. Nc3 {[%clk 0:15:18]}  Bb4 {[%clk 0:15:18]} 4. e5 {[%clk 0:15:18]}  c5 {[%clk 0:15:18]} 5. a3 {[%clk 0:15:18]}  Bxc3+ {[%clk 0:15:18]} 6. bxc3 {[%clk 0:15:18]}  Qc7 {[%clk 0:15:18]} 7. Nf3 {[%clk 0:15:18]}  Ne7 {[%clk 0:15:18]} 8. a4 {[%clk 0:15:18]}  h6 {[%clk 0:15:18]} 9. Bb5+ {[%clk 0:15:18]}  Bd7 {[%clk 0:15:18]} 10. Bd3 {[%clk 0:15:37]}  Nbc6 {[%clk 0:15:35]} 11. O-O {[%clk 0:15:37]}  Qa5 {[%clk 0:15:35]} 12. dxc5 {[%clk 0:15:37]}  Qxc3 {[%clk 0:15:35]} 13. Rb1 {[%clk 0:15:37]}  Nxe5 {[%clk 0:15:18]} 14. Bb2 {[%clk 0:14:00]}  Nxf3+ {[%clk 0:15:18]} 15. Qxf3 {[%clk 0:11:54]}  Qxc5 {[%clk 0:14:20]} 16. Bxg7 {[%clk 0:11:54]}  Rg8 {[%clk 0:14:20]} 17. Bxh6 {[%clk 0:11:54]}  Bc6 {[%clk 0:14:20]} 18. Bf4 {[%clk 0:11:37]}  d4 {[%clk 0:13:47]} 19. Be4 {[%clk 0:04:25]}  Qxc2 {[%clk 0:13:47]} 20. Bxc6+ {[%clk 0:04:25]}  Qxc6 {[%clk 0:13:47]} 21. Qxc6+ {[%clk 0:04:25]}  bxc6 {[%clk 0:13:47]} 22. Rb7 {[%clk 0:04:25]}  f6 {[%clk 0:13:47]} 23. Bd6 {[%clk 0:04:25]}  Nd5 {[%clk 0:07:48]} 24. Bc5 {[%clk 0:03:15]}  e5 {[%clk 0:07:48]} 25. Rfb1 {[%clk 0:02:48]}  d3 {[%clk 0:06:28]} 26. R7b3 {[%clk 0:02:48]}  e4 {[%clk 0:06:28]} 27. f3 {[%clk 0:02:48]}  f5 {[%clk 0:06:28]} 28. fxe4 {[%clk 0:00:14]}  fxe4 {[%clk 0:06:11]} 29. Re1 {[%clk 0:00:14]}  O-O-O {[%clk 0:06:19]} 30. Bxa7 {[%clk 0:00:14]}  Rge8 {[%clk 0:06:19]} 31. Kf2 {[%clk 0:00:14]}  e3+ {[%clk 0:06:19]} 32. Bxe3 {[%clk 0:00:14]}  Nxe3 {[%clk 0:06:19]} 33. Reb1 {[%clk 0:00:14]}  d2 {[%clk 0:06:19]} 34. Rb8+ {[%clk 0:00:18]}  Kc7 {[%clk 0:05:32]} 0-1


[Site "http://www.Chess.com"]

[Event "FIDE World Rapid Chess Championship 2021"]
[White "Matlakov, Maxim"]
[Black "Shirov, Alexei"]
[WhiteFideId "4168003"]
[BlackFideId "2209390"]
[WhiteElo "2652"]
[BlackElo "2702"]
[Result "1-0"]
[Round "12"]
[TimeControl "900+10"]
[Date "2021.12.28"]
[WhiteClock "0:00:00"]
[BlackClock "0:00:36"]

1. e4 {[%clk 0:15:18]}  e5 {[%clk 0:15:06]} 2. Nf3 {[%clk 0:15:18]}  Nc6 {[%clk 0:15:19]} 3. Bc4 {[%clk 0:15:18]}  Bc5 {[%clk 0:15:19]} 4. d3 {[%clk 0:15:18]}  Nf6 {[%clk 0:15:19]} 5. a4 {[%clk 0:15:18]}  d6 {[%clk 0:14:06]} 6. a5 {[%clk 0:15:28]}  a6 {[%clk 0:14:06]} 7. c3 {[%clk 0:15:28]}  Bg4 {[%clk 0:14:06]} 8. h3 {[%clk 0:15:29]}  Bh5 {[%clk 0:12:20]} 9. Nbd2 {[%clk 0:15:29]}  O-O {[%clk 0:12:20]} 10. Nf1 {[%clk 0:15:29]}  Bg6 {[%clk 0:12:09]} 11. Bg5 {[%clk 0:13:14]}  h6 {[%clk 0:07:31]} 12. Bh4 {[%clk 0:13:14]}  Nb8 {[%clk 0:06:36]} 13. g4 {[%clk 0:10:08]}  c6 {[%clk 0:06:36]} 14. Ng3 {[%clk 0:08:43]}  d5 {[%clk 0:05:57]} 15. Bb3 {[%clk 0:08:43]}  Nbd7 {[%clk 0:05:57]} 16. g5 {[%clk 0:08:43]}  dxe4 {[%clk 0:05:13]} 17. gxf6 {[%clk 0:06:38]}  exf3 {[%clk 0:02:31]} 18. fxg7 {[%clk 0:06:38]}  Qxh4 {[%clk 0:02:31]} 19. gxf8=Q+ {[%clk 0:06:38]}  Kxf8 {[%clk 0:02:31]} 20. Qxf3 {[%clk 0:06:38]}  e4 {[%clk 0:02:31]} 21. Qg4 {[%clk 0:05:15]}  Qf6 {[%clk 0:01:58]} 22. d4 {[%clk 0:03:59]}  Ne5 {[%clk 0:01:46]} 23. Nxe4 {[%clk 0:03:59]}  Nd3+ {[%clk 0:00:48]} 24. Kd2 {[%clk 0:01:41]}  Bxe4 {[%clk 0:00:48]} 25. Qxe4 {[%clk 0:01:41]}  Nxf2 {[%clk 0:00:48]} 26. Qe5 {[%clk 0:01:41]}  Qxe5 {[%clk 0:00:48]} 27. dxe5 {[%clk 0:01:41]}  Nxh1 {[%clk 0:00:48]} 28. Rxh1 {[%clk 0:01:41]}  Rd8+ {[%clk 0:00:48]} 29. Kc2 {[%clk 0:01:41]}  Ke7 {[%clk 0:00:48]} 30. Rf1 {[%clk 0:01:41]}  Rf8 {[%clk 0:00:48]} 31. Rf6 {[%clk 0:01:41]}  Be3 {[%clk 0:00:48]} 32. h4 {[%clk 0:01:41]}  h5 {[%clk 0:00:48]} 33. Bc4 {[%clk 0:01:41]}  Ba7 {[%clk 0:00:16]} 34. Kd3 {[%clk 0:02:07]}  Bb8 {[%clk 0:00:16]} 35. Ke4 {[%clk 0:02:07]}  Bc7 {[%clk 0:00:16]} 36. b4 {[%clk 0:00:42]}  Bd8 {[%clk 0:00:23]} 37. Rf5 {[%clk 0:00:42]}  Ke8 {[%clk 0:00:23]} 38. Rxh5 {[%clk 0:00:42]}  Rg8 {[%clk 0:00:23]} 39. Rh7 {[%clk 0:00:42]}  Rg4+ {[%clk 0:00:23]} 40. Kd3 {[%clk 0:00:42]}  Rxh4 {[%clk 0:00:23]} 41. Bxf7+ {[%clk 0:00:42]}  Kd7 {[%clk 0:00:23]} 42. Rg7 {[%clk 0:00:42]}  Be7 {[%clk 0:00:23]} 43. Bg6 {[%clk 0:00:42]}  Rf4 {[%clk 0:00:23]} 44. Bh5 {[%clk 0:00:42]}  Kd8 {[%clk 0:00:23]} 45. Bg4 {[%clk 0:00:42]}  Rf2 {[%clk 0:00:23]} 46. Ke4 {[%clk 0:00:42]}  Rf8 {[%clk 0:00:23]} 47. Bf5 {[%clk 0:00:16]}  Rh8 {[%clk 0:00:30]} 48. Bg4 {[%clk 0:00:16]}  Rf8 {[%clk 0:00:30]} 49. Bc8 {[%clk 0:00:16]}  Bxb4 {[%clk 0:00:30]} 50. cxb4 {[%clk 0:00:16]}  Kxc8 {[%clk 0:00:30]} 51. e6 {[%clk 0:00:16]}  Rf1 {[%clk 0:00:30]} 52. Ke5 {[%clk 0:00:16]}  Re1+ {[%clk 0:00:30]} 53. Kd6 {[%clk 0:00:16]}  Rd1+ {[%clk 0:00:30]} 54. Kc5 {[%clk 0:00:16]}  Re1 {[%clk 0:00:30]} 55. Kd6 {[%clk 0:00:16]}  Rd1+ {[%clk 0:00:30]} 56. Ke7 {[%clk 0:00:00]}  Rd4 {[%clk 0:00:36]} 57. Kf8 {[%clk 0:00:00]}  Rf4+ {[%clk 0:00:36]} 58. Rf7 {[%clk 0:00:00]} 1-0


[Site "http://www.Chess.com"]

[Event "FIDE World Rapid Chess Championship 2021"]
[White "Korobov, Anton"]
[Black "Volokitin, Andrei"]
[WhiteFideId "14105730"]
[BlackFideId "14107090"]
[WhiteElo "2689"]
[BlackElo "2631"]
[Result "1/2-1/2"]
[Round "12"]
[TimeControl "900+10"]
[Date "2021.12.28"]
[WhiteClock "0:00:59"]
[BlackClock "0:00:30"]

1. d4 {[%clk 0:15:00]}  Nf6 {[%clk 0:15:19]} 2. c4 {[%clk 0:15:19]}  e6 {[%clk 0:15:19]} 3. Nc3 {[%clk 0:15:27]}  Bb4 {[%clk 0:15:19]} 4. e3 {[%clk 0:15:27]}  O-O {[%clk 0:15:19]} 5. Ne2 {[%clk 0:15:27]}  c6 {[%clk 0:15:19]} 6. a3 {[%clk 0:15:27]}  Ba5 {[%clk 0:15:19]} 7. b4 {[%clk 0:15:27]}  Bc7 {[%clk 0:15:19]} 8. Ng3 {[%clk 0:15:27]}  d5 {[%clk 0:16:01]} 9. Bb2 {[%clk 0:15:21]}  Nbd7 {[%clk 0:16:01]} 10. f4 {[%clk 0:15:21]}  a5 {[%clk 0:16:01]} 11. c5 {[%clk 0:15:21]}  b6 {[%clk 0:11:23]} 12. Be2 {[%clk 0:13:49]}  Ba6 {[%clk 0:11:23]} 13. Bxa6 {[%clk 0:13:49]}  Rxa6 {[%clk 0:11:23]} 14. b5 {[%clk 0:13:49]}  cxb5 {[%clk 0:07:24]} 15. c6 {[%clk 0:12:26]}  Nb8 {[%clk 0:07:24]} 16. Nxb5 {[%clk 0:12:26]}  Nxc6 {[%clk 0:07:24]} 17. Rc1 {[%clk 0:12:42]}  Qd7 {[%clk 0:05:08]} 18. Qc2 {[%clk 0:12:42]}  Ne7 {[%clk 0:05:17]} 19. Qd3 {[%clk 0:10:37]}  Bb8 {[%clk 0:03:57]} 20. a4 {[%clk 0:10:37]}  Nc6 {[%clk 0:03:42]} 21. O-O {[%clk 0:08:41]}  Nb4 {[%clk 0:03:42]} 22. Qb1 {[%clk 0:08:41]}  Ra8 {[%clk 0:03:42]} 23. Rc3 {[%clk 0:08:41]}  h5 {[%clk 0:03:42]} 24. e4 {[%clk 0:07:48]}  dxe4 {[%clk 0:00:31]} 25. Nxe4 {[%clk 0:07:48]}  Nxe4 {[%clk 0:00:31]} 26. Qxe4 {[%clk 0:07:48]}  Qd5 {[%clk 0:00:31]} 27. Qe2 {[%clk 0:07:48]}  Qf5 {[%clk 0:00:31]} 28. g3 {[%clk 0:06:05]}  Nd5 {[%clk 0:00:16]} 29. Rc6 {[%clk 0:06:05]}  Qg4 {[%clk 0:00:16]} 30. Qxg4 {[%clk 0:06:05]}  hxg4 {[%clk 0:00:16]} 31. Ba3 {[%clk 0:04:05]}  Nb4 {[%clk 0:00:22]} 32. Rxb6 {[%clk 0:04:05]}  Rc8 {[%clk 0:00:22]} 33. Rb7 {[%clk 0:04:05]}  Ra6 {[%clk 0:00:22]} 34. f5 {[%clk 0:04:05]}  e5 {[%clk 0:00:22]} 35. Bxb4 {[%clk 0:04:05]}  axb4 {[%clk 0:00:22]} 36. d5 {[%clk 0:04:05]}  Bd6 {[%clk 0:00:22]} 37. Kh1 {[%clk 0:02:55]}  b3 {[%clk 0:00:29]} 38. Rb1 {[%clk 0:02:55]}  Rc2 {[%clk 0:00:29]} 39. Rxb3 {[%clk 0:00:59]}  Rxa4 {[%clk 0:00:30]} 40. Nxd6 {[%clk 0:00:59]}  Raa2 {[%clk 0:00:30]} 41. Rb1 {[%clk 0:00:59]}  Rxh2+ {[%clk 0:00:30]} 42. Kg1 {[%clk 0:00:59]}  Rag2+ {[%clk 0:00:30]} 43. Kf1 {[%clk 0:00:59]}  Rf2+ {[%clk 0:00:30]} 44. Kg1 {[%clk 0:00:59]}  Rfg2+ {[%clk 0:00:30]} 1/2-1/2


[Site "http://www.Chess.com"]

[Event "FIDE World Rapid Chess Championship 2021"]
[White "Niemann, Hans Moke"]
[Black "Onyshchuk, Volodymyr"]
[WhiteFideId "2093596"]
[BlackFideId "14114038"]
[WhiteElo "2327"]
[BlackElo "2687"]
[Result "0-1"]
[Round "12"]
[TimeControl "900+10"]
[Date "2021.12.28"]
[WhiteClock "0:06:09"]
[BlackClock "0:02:54"]

1. d4 {[%clk 0:15:00]}  d6 {[%clk 0:15:19]} 2. e4 {[%clk 0:15:26]}  g6 {[%clk 0:15:19]} 3. Nc3 {[%clk 0:15:26]}  Bg7 {[%clk 0:15:19]} 4. Be3 {[%clk 0:15:26]}  a6 {[%clk 0:15:19]} 5. a4 {[%clk 0:15:26]}  b6 {[%clk 0:15:19]} 6. g4 {[%clk 0:15:26]}  Bb7 {[%clk 0:15:19]} 7. Bg2 {[%clk 0:15:26]}  Nd7 {[%clk 0:15:19]} 8. h4 {[%clk 0:14:47]}  h6 {[%clk 0:15:43]} 9. Nge2 {[%clk 0:14:47]}  e6 {[%clk 0:15:43]} 10. Ng3 {[%clk 0:14:47]}  Ne7 {[%clk 0:15:43]} 11. Qd2 {[%clk 0:14:47]}  c5 {[%clk 0:15:43]} 12. Rd1 {[%clk 0:14:47]}  Qc7 {[%clk 0:15:43]} 13. d5 {[%clk 0:14:47]}  exd5 {[%clk 0:15:10]} 14. exd5 {[%clk 0:13:16]}  O-O-O {[%clk 0:15:10]} 15. f4 {[%clk 0:13:16]}  Rde8 {[%clk 0:15:10]} 16. Kf1 {[%clk 0:13:09]}  Kb8 {[%clk 0:13:55]} 17. g5 {[%clk 0:10:50]}  hxg5 {[%clk 0:13:55]} 18. hxg5 {[%clk 0:10:50]}  Rxh1+ {[%clk 0:13:55]} 19. Bxh1 {[%clk 0:10:50]}  f6 {[%clk 0:13:55]} 20. Nge4 {[%clk 0:10:50]}  Nf5 {[%clk 0:09:49]} 21. Bf2 {[%clk 0:09:27]}  Rh8 {[%clk 0:09:49]} 22. Bg2 {[%clk 0:09:27]}  Nh4 {[%clk 0:07:00]} 23. Bxh4 {[%clk 0:09:40]}  Rxh4 {[%clk 0:07:00]} 24. Ne2 {[%clk 0:09:40]}  b5 {[%clk 0:07:08]} 25. axb5 {[%clk 0:08:25]}  axb5 {[%clk 0:07:08]} 26. Qd3 {[%clk 0:08:25]}  f5 {[%clk 0:07:08]} 27. N4c3 {[%clk 0:08:25]}  b4 {[%clk 0:07:08]} 28. Nb5 {[%clk 0:08:25]}  Qb6 {[%clk 0:07:08]} 29. c4 {[%clk 0:08:25]}  Bxb2 {[%clk 0:07:08]} 30. Qe3 {[%clk 0:08:25]}  Ne5 {[%clk 0:05:28]} 31. Qb3 {[%clk 0:07:58]}  Nxc4 {[%clk 0:05:13]} 32. Qxc4 {[%clk 0:06:14]}  Ba6 {[%clk 0:05:13]} 33. Qb3 {[%clk 0:06:14]}  Bg7 {[%clk 0:05:13]} 34. Na3 {[%clk 0:06:14]}  Rxf4+ {[%clk 0:05:13]} 35. Ke1 {[%clk 0:06:14]}  Bxe2 {[%clk 0:05:13]} 36. Qe3 {[%clk 0:06:19]}  Be5 {[%clk 0:02:54]} 37. Kxe2 {[%clk 0:06:09]}  Qa6+ {[%clk 0:02:54]} 38. Rd3 {[%clk 0:06:09]}  bxa3 {[%clk 0:02:54]} 0-1


[Site "http://www.Chess.com"]

[Event "FIDE World Rapid Chess Championship 2021"]
[White "Shevchenko, Kirill"]
[Black "Saric, Ivan"]
[WhiteFideId "14129574"]
[BlackFideId "14508150"]
[WhiteElo "2508"]
[BlackElo "2684"]
[Result "1-0"]
[Round "12"]
[TimeControl "900+10"]
[Date "2021.12.28"]
[WhiteClock "0:00:48"]
[BlackClock "0:00:53"]

1. e4 {[%clk 0:15:00]}  c5 {[%clk 0:15:19]} 2. Nc3 {[%clk 0:15:18]}  Nc6 {[%clk 0:15:19]} 3. Bb5 {[%clk 0:15:26]}  Nd4 {[%clk 0:15:19]} 4. Nf3 {[%clk 0:15:26]}  a6 {[%clk 0:15:19]} 5. Bd3 {[%clk 0:15:26]}  Nc6 {[%clk 0:15:19]} 6. O-O {[%clk 0:15:26]}  e6 {[%clk 0:15:19]} 7. e5 {[%clk 0:14:07]}  f5 {[%clk 0:15:42]} 8. Be2 {[%clk 0:14:07]}  Nh6 {[%clk 0:15:42]} 9. d4 {[%clk 0:12:14]}  cxd4 {[%clk 0:15:07]} 10. Nxd4 {[%clk 0:12:14]}  Nf7 {[%clk 0:15:07]} 11. Re1 {[%clk 0:12:14]}  Nxd4 {[%clk 0:15:01]} 12. Qxd4 {[%clk 0:11:03]}  Qc7 {[%clk 0:15:01]} 13. Bf4 {[%clk 0:11:03]}  Bc5 {[%clk 0:15:01]} 14. Qd2 {[%clk 0:11:03]}  b5 {[%clk 0:15:01]} 15. b4 {[%clk 0:09:40]}  Be7 {[%clk 0:13:16]} 16. Nd5 {[%clk 0:07:06]}  exd5 {[%clk 0:09:07]} 17. e6 {[%clk 0:05:35]}  Nd6 {[%clk 0:09:07]} 18. Qxd5 {[%clk 0:05:35]}  Bb7 {[%clk 0:09:07]} 19. Bh5+ {[%clk 0:05:35]}  Kd8 {[%clk 0:08:46]} 20. Qd4 {[%clk 0:03:53]}  Qc4 {[%clk 0:08:46]} 21. Qb6+ {[%clk 0:03:30]}  Qc7 {[%clk 0:06:42]} 22. Qd4 {[%clk 0:03:30]}  Qc4 {[%clk 0:06:42]} 23. Qxg7 {[%clk 0:02:38]}  Qxf4 {[%clk 0:06:25]} 24. Qxh8+ {[%clk 0:02:38]}  Kc7 {[%clk 0:06:25]} 25. Qc3+ {[%clk 0:02:38]}  Nc4 {[%clk 0:06:25]} 26. exd7 {[%clk 0:00:19]}  Rg8 {[%clk 0:05:29]} 27. g3 {[%clk 0:00:19]}  Qd6 {[%clk 0:05:29]} 28. Rad1 {[%clk 0:00:19]}  Qc6 {[%clk 0:05:29]} 29. f3 {[%clk 0:00:19]}  Bf6 {[%clk 0:01:05]} 30. Re8 {[%clk 0:00:21]}  Rxe8 {[%clk 0:01:05]} 31. dxe8=N+ {[%clk 0:00:21]}  Qxe8 {[%clk 0:01:05]} 32. Qxc4+ {[%clk 0:00:21]}  bxc4 {[%clk 0:01:05]} 33. Bxe8 {[%clk 0:00:21]}  Bxf3 {[%clk 0:01:05]} 34. Rd7+ {[%clk 0:00:21]}  Kc8 {[%clk 0:01:05]} 35. Rd6 {[%clk 0:00:48]}  Be7 {[%clk 0:00:53]} 36. Rd4 {[%clk 0:00:48]}  c3 {[%clk 0:00:53]} 37. Rc4+ {[%clk 0:00:48]}  Kd8 {[%clk 0:00:53]} 38. Bc6 {[%clk 0:00:48]}  Be2 {[%clk 0:00:53]} 39. Rxc3 {[%clk 0:00:48]}  Bxb4 {[%clk 0:00:53]} 40. Rb3 {[%clk 0:00:48]}  a5 {[%clk 0:00:53]} 41. Bd5 {[%clk 0:00:48]}  Kc7 {[%clk 0:00:53]} 42. c3 {[%clk 0:00:48]}  Bc5+ {[%clk 0:00:53]} 43. Kg2 {[%clk 0:00:48]}  Kd6 {[%clk 0:00:53]} 44. Rb2 {[%clk 0:00:48]}  Ba6 {[%clk 0:00:53]} 45. c4 {[%clk 0:00:48]}  Ke5 {[%clk 0:00:53]} 46. Rb8 {[%clk 0:00:48]} 1-0


[Site "http://www.Chess.com"]

[Event "FIDE World Rapid Chess Championship 2021"]
[White "Sarana, Alexey"]
[Black "Van Foreest, Jorden"]
[WhiteFideId "24133795"]
[BlackFideId "1039784"]
[WhiteElo "2680"]
[BlackElo "2563"]
[Result "1/2-1/2"]
[Round "12"]
[TimeControl "900+10"]
[Date "2021.12.28"]
[WhiteClock "0:11:38"]
[BlackClock "0:08:36"]

1. d4 {[%clk 0:15:00]}  d5 {[%clk 0:15:18]} 2. c4 {[%clk 0:15:28]}  e6 {[%clk 0:15:18]} 3. Nc3 {[%clk 0:15:28]}  Nf6 {[%clk 0:15:18]} 4. cxd5 {[%clk 0:15:28]}  exd5 {[%clk 0:15:18]} 5. Bg5 {[%clk 0:15:28]}  c6 {[%clk 0:15:18]} 6. e3 {[%clk 0:15:28]}  h6 {[%clk 0:15:18]} 7. Bh4 {[%clk 0:15:28]}  Be7 {[%clk 0:15:18]} 8. Bd3 {[%clk 0:15:28]}  O-O {[%clk 0:15:18]} 9. Nge2 {[%clk 0:15:28]}  Ne4 {[%clk 0:14:48]} 10. Bxe7 {[%clk 0:15:51]}  Qxe7 {[%clk 0:14:48]} 11. O-O {[%clk 0:15:51]}  Bf5 {[%clk 0:14:48]} 12. Bxe4 {[%clk 0:15:51]}  Bxe4 {[%clk 0:14:48]} 13. Nxe4 {[%clk 0:15:51]}  Qxe4 {[%clk 0:14:48]} 14. b4 {[%clk 0:15:51]}  a6 {[%clk 0:15:00]} 15. Nc3 {[%clk 0:15:12]}  Qe7 {[%clk 0:15:00]} 16. Na4 {[%clk 0:15:12]}  Nd7 {[%clk 0:15:00]} 17. Qc2 {[%clk 0:15:12]}  b5 {[%clk 0:15:00]} 18. Nb2 {[%clk 0:15:12]}  Rfc8 {[%clk 0:12:23]} 19. Nd3 {[%clk 0:14:59]}  Nb6 {[%clk 0:12:23]} 20. Qc3 {[%clk 0:14:59]}  Na4 {[%clk 0:12:23]} 21. Qd2 {[%clk 0:14:59]}  Nb6 {[%clk 0:12:23]} 22. Qc3 {[%clk 0:14:59]}  Na4 {[%clk 0:12:23]} 23. Qd2 {[%clk 0:14:59]}  Nb6 {[%clk 0:12:23]} 24. Nc5 {[%clk 0:14:33]}  a5 {[%clk 0:11:25]} 25. bxa5 {[%clk 0:14:33]}  Nc4 {[%clk 0:11:25]} 26. Qc3 {[%clk 0:14:33]}  Rxa5 {[%clk 0:11:25]} 27. a4 {[%clk 0:14:33]}  bxa4 {[%clk 0:10:50]} 28. Rxa4 {[%clk 0:14:29]}  Rxa4 {[%clk 0:10:50]} 29. Nxa4 {[%clk 0:14:29]}  Rb8 {[%clk 0:10:50]} 30. Nc5 {[%clk 0:14:29]}  Qg5 {[%clk 0:10:50]} 31. Qa1 {[%clk 0:14:40]}  Nd2 {[%clk 0:08:36]} 32. Rd1 {[%clk 0:14:40]}  Qg6 {[%clk 0:08:36]} 33. Nd7 {[%clk 0:11:38]}  Nf3+ {[%clk 0:08:36]} 34. Kh1 {[%clk 0:11:38]}  Qd6 {[%clk 0:08:36]} 35. gxf3 {[%clk 0:11:38]} 1/2-1/2


[Site "http://www.Chess.com"]

[Event "FIDE World Rapid Chess Championship 2021"]
[White "Mitrabha, Guha"]
[Black "Jobava, Baadur"]
[WhiteFideId "5057000"]
[BlackFideId "13601520"]
[WhiteElo "2107"]
[BlackElo "2679"]
[Result "1-0"]
[Round "12"]
[TimeControl "900+10"]
[Date "2021.12.28"]
[WhiteClock "0:00:23"]
[BlackClock "0:00:43"]

1. d4 {[%clk 0:15:00]}  d5 {[%clk 0:15:00]} 2. c4 {[%clk 0:15:18]}  dxc4 {[%clk 0:15:00]} 3. Nf3 {[%clk 0:15:18]}  Nf6 {[%clk 0:15:00]} 4. e3 {[%clk 0:15:18]}  Bg4 {[%clk 0:15:00]} 5. Bxc4 {[%clk 0:15:18]}  e6 {[%clk 0:15:00]} 6. O-O {[%clk 0:15:18]}  Bd6 {[%clk 0:15:00]} 7. Nc3 {[%clk 0:15:18]}  Nc6 {[%clk 0:15:00]} 8. h3 {[%clk 0:15:18]}  Bh5 {[%clk 0:15:00]} 9. Qe2 {[%clk 0:15:18]}  O-O {[%clk 0:15:41]} 10. Rd1 {[%clk 0:15:19]}  Qe8 {[%clk 0:15:41]} 11. Bb5 {[%clk 0:15:19]}  e5 {[%clk 0:14:29]} 12. dxe5 {[%clk 0:12:29]}  Bxf3 {[%clk 0:10:30]} 13. Qxf3 {[%clk 0:12:29]}  Qxe5 {[%clk 0:10:30]} 14. g3 {[%clk 0:12:29]}  Rad8 {[%clk 0:10:30]} 15. Bd2 {[%clk 0:10:43]}  h5 {[%clk 0:09:52]} 16. Bxc6 {[%clk 0:10:43]}  bxc6 {[%clk 0:09:52]} 17. Ne2 {[%clk 0:10:43]}  Ne4 {[%clk 0:09:52]} 18. Bc3 {[%clk 0:10:43]}  Nxc3 {[%clk 0:09:23]} 19. bxc3 {[%clk 0:09:00]}  h4 {[%clk 0:09:23]} 20. gxh4 {[%clk 0:09:00]}  c5 {[%clk 0:09:23]} 21. Qg2 {[%clk 0:09:00]}  Rfe8 {[%clk 0:09:23]} 22. Kf1 {[%clk 0:07:38]}  Be7 {[%clk 0:02:54]} 23. Qg3 {[%clk 0:07:38]}  Qe4 {[%clk 0:02:54]} 24. Qg4 {[%clk 0:07:38]}  Qh1+ {[%clk 0:02:54]} 25. Ng1 {[%clk 0:07:38]}  Bf6 {[%clk 0:02:54]} 26. Rxd8 {[%clk 0:06:23]}  Rxd8 {[%clk 0:02:33]} 27. Rd1 {[%clk 0:06:23]}  Rxd1+ {[%clk 0:02:33]} 28. Qxd1 {[%clk 0:06:23]}  Qe4 {[%clk 0:02:33]} 29. Ne2 {[%clk 0:06:23]}  Qf3 {[%clk 0:02:34]} 30. Kg1 {[%clk 0:04:42]}  Bxh4 {[%clk 0:01:40]} 31. Qf1 {[%clk 0:04:42]}  Qd5 {[%clk 0:01:40]} 32. a3 {[%clk 0:01:26]}  g6 {[%clk 0:00:32]} 33. Nf4 {[%clk 0:01:26]}  Qa2 {[%clk 0:00:39]} 34. Qe2 {[%clk 0:00:39]}  Qa1+ {[%clk 0:00:48]} 35. Kg2 {[%clk 0:00:39]}  Qxc3 {[%clk 0:00:48]} 36. Qg4 {[%clk 0:00:39]}  Be7 {[%clk 0:00:48]} 37. Qc8+ {[%clk 0:00:39]}  Kg7 {[%clk 0:00:48]} 38. Qxc7 {[%clk 0:00:39]}  Qf6 {[%clk 0:00:48]} 39. Qxa7 {[%clk 0:00:39]}  Bd6 {[%clk 0:00:48]} 40. Qa4 {[%clk 0:00:39]}  Qg5+ {[%clk 0:00:48]} 41. Kf3 {[%clk 0:00:39]}  Qf5 {[%clk 0:00:48]} 42. Qe4 {[%clk 0:00:39]}  Qc8 {[%clk 0:00:48]} 43. Kg2 {[%clk 0:00:39]}  Bxf4 {[%clk 0:00:48]} 44. Qxf4 {[%clk 0:00:39]}  c4 {[%clk 0:00:48]} 45. Qd4+ {[%clk 0:00:39]}  Kh7 {[%clk 0:00:48]} 46. Qc3 {[%clk 0:00:39]}  Qc6+ {[%clk 0:00:48]} 47. Kf1 {[%clk 0:00:39]}  g5 {[%clk 0:00:48]} 48. Ke2 {[%clk 0:00:39]}  Kg6 {[%clk 0:00:48]} 49. Qc2+ {[%clk 0:01:03]}  f5 {[%clk 0:00:57]} 50. Qc3 {[%clk 0:01:03]}  Qb5 {[%clk 0:00:57]} 51. Qb4 {[%clk 0:01:03]}  Qc6 {[%clk 0:00:57]} 52. Qc3 {[%clk 0:01:03]}  Qb5 {[%clk 0:00:57]} 53. Qb4 {[%clk 0:01:03]}  Qa6 {[%clk 0:00:57]} 54. Kd2 {[%clk 0:01:03]}  Kh5 {[%clk 0:00:57]} 55. Kc3 {[%clk 0:01:03]}  g4 {[%clk 0:00:57]} 56. hxg4+ {[%clk 0:01:03]}  fxg4 {[%clk 0:00:57]} 57. Qe7 {[%clk 0:01:03]}  Qb5 {[%clk 0:00:29]} 58. Qf7+ {[%clk 0:00:56]}  Kh4 {[%clk 0:00:29]} 59. Qxc4 {[%clk 0:00:56]}  Qb1 {[%clk 0:00:29]} 60. Qf4 {[%clk 0:00:56]}  Qc1+ {[%clk 0:00:29]} 61. Kb4 {[%clk 0:00:56]}  Qb2+ {[%clk 0:00:29]} 62. Ka4 {[%clk 0:00:56]}  Kh5 {[%clk 0:00:29]} 63. Qf7+ {[%clk 0:00:56]}  Kg5 {[%clk 0:00:29]} 64. Qf8 {[%clk 0:00:56]}  Qb6 {[%clk 0:00:29]} 65. Qb4 {[%clk 0:00:56]}  Qf6 {[%clk 0:00:36]} 66. Qd2 {[%clk 0:00:36]}  Kh4 {[%clk 0:00:36]} 67. Kb5 {[%clk 0:00:36]}  Qf5+ {[%clk 0:00:36]} 68. Kb4 {[%clk 0:00:36]}  Qf8+ {[%clk 0:00:36]} 69. Kb3 {[%clk 0:00:36]}  Qf7+ {[%clk 0:00:36]} 70. Kc3 {[%clk 0:00:36]}  Qf8 {[%clk 0:00:36]} 71. Kb2 {[%clk 0:00:36]}  Qf6+ {[%clk 0:00:36]} 72. Kb3 {[%clk 0:00:36]}  Qf7+ {[%clk 0:00:36]} 73. Kc3 {[%clk 0:00:36]}  Qf8 {[%clk 0:00:36]} 74. Qa2 {[%clk 0:00:36]}  Qf6+ {[%clk 0:00:36]} 75. Kd3 {[%clk 0:00:36]}  Qa6+ {[%clk 0:00:43]} 76. Ke4 {[%clk 0:00:23]}  Qa4+ {[%clk 0:00:43]} 77. Kf5 {[%clk 0:00:23]}  Kh3 {[%clk 0:00:43]} 78. Qd5 {[%clk 0:00:23]}  Qc2+ {[%clk 0:00:43]} 79. Kg5 {[%clk 0:00:23]}  Qc1 {[%clk 0:00:43]} 80. Qe5 {[%clk 0:00:23]}  Qg1 {[%clk 0:00:43]} 81. Qf4 {[%clk 0:00:23]}  Qg2 {[%clk 0:00:43]} 82. e4 {[%clk 0:00:23]}  Qg1 {[%clk 0:00:43]} 83. e5 {[%clk 0:00:23]}  Qg2 {[%clk 0:00:43]} 84. Qg3+ {[%clk 0:00:23]} 1-0


[Site "http://www.Chess.com"]